[Event "*** Titled Tuesday Blitz"]
[Site "Chess.com"]
[Date "2021.03.30"]
[Round "3"]
[White "smshk35"]
[Black "horripile"]
[Result "0-1"]
[WhiteElo "2409"]
[BlackElo "2600"]
[TimeControl "180+1"]
[EndTime "10:29:17 PDT"]
[Termination "horripile won on time"]

1. e4 {[%clk 0:03:00.9]} 1... c5 {[%clk 0:03:00]} 2. b4 {[%clk 0:02:59.4]} 2...
cxb4 {[%clk 0:02:59.8]} 3. d4 {[%clk 0:02:59.1]} 3... d5 {[%clk 0:02:57.9]} 4.
exd5 {[%clk 0:02:56.2]} 4... Nf6 {[%clk 0:02:57.9]} 5. Nf3 {[%clk 0:02:54.3]}
5... Nxd5 {[%clk 0:02:57.8]} 6. Bc4 {[%clk 0:02:53.6]} 6... e6 {[%clk
0:02:57.7]} 7. O-O {[%clk 0:02:53.5]} 7... Be7 {[%clk 0:02:58]} 8. a3 {[%clk
0:02:51.4]} 8... O-O {[%clk 0:02:57.1]} 9. axb4 {[%clk 0:02:50.6]} 9... Bxb4
{[%clk 0:02:52]} 10. c3 {[%clk 0:02:42.4]} 10... Be7 {[%clk 0:02:46.6]} 11. Bb3
{[%clk 0:02:34.3]} 11... b6 {[%clk 0:02:45.6]} 12. Ne5 {[%clk 0:02:29.1]} 12...
Bb7 {[%clk 0:02:45.5]} 13. Bc2 {[%clk 0:02:27]} 13... Nc6 {[%clk 0:02:40.5]} 14.
Re1 {[%clk 0:01:52.5]} 14... a6 {[%clk 0:02:29.3]} 15. Qf3 {[%clk 0:01:41.3]}
15... Qc7 {[%clk 0:01:59.4]} 16. Qh3 {[%clk 0:01:22.6]} 16... g6 {[%clk
0:01:53.1]} 17. Bh6 {[%clk 0:01:08.2]} 17... Nxd4 {[%clk 0:01:48.5]} 18. cxd4
{[%clk 0:01:03.1]} 18... Qxc2 {[%clk 0:01:48.5]} 19. Na3 {[%clk 0:00:37.4]}
19... Qf5 {[%clk 0:01:42.9]} 20. Qxf5 {[%clk 0:00:33.4]} 20... gxf5 {[%clk
0:01:42.2]} 21. Bxf8 {[%clk 0:00:32.2]} 21... Kxf8 {[%clk 0:01:39.6]} 22. Rec1
{[%clk 0:00:20]} 22... f6 {[%clk 0:01:36.3]} 23. Nf3 {[%clk 0:00:16.7]} 23...
Ke8 {[%clk 0:01:29.4]} 24. Nc4 {[%clk 0:00:16.5]} 24... Rb8 {[%clk 0:01:20.2]}
25. Rab1 {[%clk 0:00:16.6]} 25... Ba8 {[%clk 0:01:18.8]} 26. Kf1 {[%clk
0:00:16.9]} 26... Kd7 {[%clk 0:01:18.8]} 27. Ne3 {[%clk 0:00:16.8]} 27... a5
{[%clk 0:01:16]} 28. Nd2 {[%clk 0:00:15.7]} 28... b5 {[%clk 0:01:07]} 29. Nb3
{[%clk 0:00:13.7]} 29... a4 {[%clk 0:01:03.3]} 30. Nc5+ {[%clk 0:00:14]} 30...
Bxc5 {[%clk 0:01:03.5]} 31. Rxc5 {[%clk 0:00:14.9]} 31... Bc6 {[%clk 0:01:01.6]}
32. Nxd5 {[%clk 0:00:14.1]} 32... Bxd5 {[%clk 0:01:00.6]} 33. Ke1 {[%clk
0:00:11.8]} 33... Bc6 {[%clk 0:01:00]} 34. Rb4 {[%clk 0:00:11.3]} 34... Ra8
{[%clk 0:00:58.4]} 35. f3 {[%clk 0:00:10]} 35... a3 {[%clk 0:00:56.9]} 36. Rc1
{[%clk 0:00:10.3]} 36... a2 {[%clk 0:00:57.5]} 37. Ra1 {[%clk 0:00:10.5]} 37...
Ra5 {[%clk 0:00:57.3]} 38. Kd2 {[%clk 0:00:10.7]} 38... Bd5 {[%clk 0:00:57.8]}
39. Kc3 {[%clk 0:00:11.2]} 39... Kd6 {[%clk 0:00:57.8]} 40. Kb2 {[%clk
0:00:11.6]} 40... Bc4 {[%clk 0:00:57.4]} 41. Rc1 {[%clk 0:00:10.8]} 41... Kd5
{[%clk 0:00:57.4]} 42. Rd1 {[%clk 0:00:05.7]} 42... h5 {[%clk 0:00:55.1]} 43.
Ka1 {[%clk 0:00:02.6]} 43... h4 {[%clk 0:00:53.8]} 44. Kb2 {[%clk 0:00:02.9]}
44... Ra8 {[%clk 0:00:52.2]} 45. Ka1 {[%clk 0:00:02.9]} 45... f4 {[%clk
0:00:48.8]} 46. Rb2 {[%clk 0:00:02.9]} 46... Ra4 {[%clk 0:00:47.3]} 47. Rdd2
{[%clk 0:00:03.1]} 47... b4 {[%clk 0:00:47]} 48. Rbc2 {[%clk 0:00:03.4]} 48...
b3 {[%clk 0:00:46.9]} 49. Rb2 {[%clk 0:00:04.1]} 49... Kc6 {[%clk 0:00:44.7]}
50. Rd1 {[%clk 0:00:05]} 50... Kb5 {[%clk 0:00:45]} 51. Rbd2 {[%clk 0:00:05.6]}
51... Kb4 {[%clk 0:00:45.1]} 52. Kb2 {[%clk 0:00:06.4]} 52... Ra8 {[%clk
0:00:44]} 53. Rc1 {[%clk 0:00:06.9]} 53... Rg8 {[%clk 0:00:42.9]} 54. d5 {[%clk
0:00:07.4]} 54... exd5 {[%clk 0:00:42.5]} 55. Ka1 {[%clk 0:00:07.3]} 55... h3
{[%clk 0:00:42]} 56. gxh3 {[%clk 0:00:06.3]} 56... Ka3 {[%clk 0:00:42.2]} 57. h4
{[%clk 0:00:06]} 57... Re8 {[%clk 0:00:41.7]} 58. h5 {[%clk 0:00:06.3]} 58...
Re5 {[%clk 0:00:40.1]} 59. h6 {[%clk 0:00:06.2]} 59... Rh5 {[%clk 0:00:38.7]}
60. h7 {[%clk 0:00:06.7]} 60... Rxh7 {[%clk 0:00:38.6]} 61. h4 {[%clk
0:00:07.4]} 61... Rxh4 {[%clk 0:00:38.6]} 62. Rcd1 {[%clk 0:00:02.7]} 62... Rh3
{[%clk 0:00:37.9]} 63. Re1 {[%clk 0:00:03.1]} 63... Rxf3 {[%clk 0:00:37.3]} 64.
Rc1 {[%clk 0:00:03.6]} 64... Rd3 {[%clk 0:00:35.7]} 65. Rxc4 {[%clk 0:00:02.1]}
65... Rxd2 {[%clk 0:00:33.3]} 0-1

[Event "*** Titled Tuesday Blitz"]
[Site "Chess.com"]
[Date "2021.03.30"]
[Round "3"]
[White "HeroString"]
[Black "AsaHoffmann"]
[Result "1/2-1/2"]
[WhiteElo "2245"]
[BlackElo "2392"]
[TimeControl "180+1"]
[EndTime "10:29:17 PDT"]
[Termination "Game drawn - insufficient material"]

1. d4 {[%clk 0:03:00.9]} 1... Nf6 {[%clk 0:02:51.6]} 2. c4 {[%clk 0:03:00.7]}
2... c5 {[%clk 0:02:50.1]} 3. d5 {[%clk 0:03:00.6]} 3... e5 {[%clk 0:02:45.8]}
4. Nc3 {[%clk 0:02:54.7]} 4... d6 {[%clk 0:02:45.7]} 5. g3 {[%clk 0:02:53.2]}
5... Be7 {[%clk 0:02:45.3]} 6. Bg2 {[%clk 0:02:52.6]} 6... O-O {[%clk
0:02:45.1]} 7. e4 {[%clk 0:02:49.2]} 7... Na6 {[%clk 0:02:43.9]} 8. Nge2 {[%clk
0:02:40.6]} 8... Ne8 {[%clk 0:02:43.3]} 9. O-O {[%clk 0:02:37.3]} 9... Bd7
{[%clk 0:02:43]} 10. f4 {[%clk 0:02:36.3]} 10... Bf6 {[%clk 0:02:42.6]} 11. Kh1
{[%clk 0:02:34.3]} 11... Nec7 {[%clk 0:02:41.7]} 12. a4 {[%clk 0:02:21.6]} 12...
Nb4 {[%clk 0:02:41.2]} 13. Nb5 {[%clk 0:02:12.4]} 13... Bxb5 {[%clk 0:02:34.6]}
14. axb5 {[%clk 0:02:11.9]} 14... a6 {[%clk 0:02:34.3]} 15. bxa6 {[%clk
0:02:08.1]} 15... Rxa6 {[%clk 0:02:26.8]} 16. Bd2 {[%clk 0:02:00.6]} 16... Rxa1
{[%clk 0:02:18.1]} 17. Qxa1 {[%clk 0:01:57.3]} 17... Nc2 {[%clk 0:02:18]} 18.
Qa7 {[%clk 0:01:47.8]} 18... Qc8 {[%clk 0:02:12.8]} 19. Nc3 {[%clk 0:01:36.5]}
19... Nd4 {[%clk 0:02:04.5]} 20. Qb6 {[%clk 0:01:26.9]} 20... Rd8 {[%clk
0:01:53]} 21. Ra1 {[%clk 0:01:26.1]} 21... Na8 {[%clk 0:01:47.4]} 22. Qa7 {[%clk
0:01:20.5]} 22... Nb3 {[%clk 0:01:35.8]} 23. Rd1 {[%clk 0:01:18.9]} 23... Qg4
{[%clk 0:01:24]} 24. Qxb7 {[%clk 0:01:07.6]} 24... exf4 {[%clk 0:01:12.4]} 25.
Qxb3 {[%clk 0:01:07.2]} 25... f3 {[%clk 0:01:02.4]} 26. Bf1 {[%clk 0:01:01.3]}
26... Be5 {[%clk 0:00:56.8]} 27. Be1 {[%clk 0:00:54.1]} 27... Nc7 {[%clk
0:00:43.9]} 28. Bf2 {[%clk 0:00:44]} 28... Ne8 {[%clk 0:00:39.1]} 29. Nb5 {[%clk
0:00:36.7]} 29... Nf6 {[%clk 0:00:38]} 30. h3 {[%clk 0:00:23.1]} 30... Qg6
{[%clk 0:00:36.7]} 31. Qxf3 {[%clk 0:00:21.4]} 31... Nxe4 {[%clk 0:00:34.9]} 32.
Bd3 {[%clk 0:00:15.4]} 32... f5 {[%clk 0:00:34.6]} 33. Bxe4 {[%clk 0:00:14.4]}
33... fxe4 {[%clk 0:00:34]} 34. Qe3 {[%clk 0:00:15.1]} 34... h5 {[%clk
0:00:32.6]} 35. Rg1 {[%clk 0:00:14.9]} 35... Rf8 {[%clk 0:00:32.2]} 36. Kh2
{[%clk 0:00:14.7]} 36... Rf3 {[%clk 0:00:31.5]} 37. Qe1 {[%clk 0:00:12.8]} 37...
Qf5 {[%clk 0:00:29.5]} 38. Rg2 {[%clk 0:00:11.9]} 38... h4 {[%clk 0:00:29.3]}
39. Nc7 {[%clk 0:00:10.5]} 39... Rxf2 {[%clk 0:00:28.5]} 40. Rxf2 {[%clk
0:00:06.8]} 40... hxg3+ {[%clk 0:00:27.6]} 41. Kg2 {[%clk 0:00:06.5]} 41... gxf2
{[%clk 0:00:26.9]} 42. Qxf2 {[%clk 0:00:07.2]} 42... Qxf2+ {[%clk 0:00:24.7]}
43. Kxf2 {[%clk 0:00:08.1]} 43... Bxb2 {[%clk 0:00:24.5]} 44. Ke3 {[%clk
0:00:07.7]} 44... Be5 {[%clk 0:00:23.7]} 45. Kxe4 {[%clk 0:00:08.3]} 45... Kf7
{[%clk 0:00:23.6]} 46. Kf5 {[%clk 0:00:08.9]} 46... g6+ {[%clk 0:00:23]} 47. Kg5
{[%clk 0:00:08.6]} 47... Bf6+ {[%clk 0:00:22.9]} 48. Kf4 {[%clk 0:00:09.2]}
48... Be5+ {[%clk 0:00:21.3]} 49. Kg5 {[%clk 0:00:09.3]} 49... Bc3 {[%clk
0:00:20.9]} 50. Ne6 {[%clk 0:00:09]} 50... Bd2+ {[%clk 0:00:20.4]} 51. Kg4
{[%clk 0:00:09.1]} 51... Kf6 {[%clk 0:00:20.4]} 52. Nd8 {[%clk 0:00:06.3]} 52...
Ke5 {[%clk 0:00:19.8]} 53. Nb7 {[%clk 0:00:05.9]} 53... Be1 {[%clk 0:00:18.4]}
54. h4 {[%clk 0:00:05.6]} 54... Bf2 {[%clk 0:00:17]} 55. Kg5 {[%clk 0:00:05.8]}
55... Be3+ {[%clk 0:00:16.2]} 56. Kxg6 {[%clk 0:00:06.2]} 56... Kd4 {[%clk
0:00:15]} 57. Nxd6 {[%clk 0:00:05.9]} 57... Bf4 {[%clk 0:00:14.1]} 58. Nb7
{[%clk 0:00:02.7]} 58... Kxc4 {[%clk 0:00:13.6]} 59. Nxc5 {[%clk 0:00:03.1]}
59... Kxc5 {[%clk 0:00:12.5]} 60. h5 {[%clk 0:00:03.8]} 60... Kxd5 {[%clk
0:00:12.6]} 61. h6 {[%clk 0:00:04.7]} 61... Bxh6 {[%clk 0:00:12.4]} 1/2-1/2

[Event "*** Titled Tuesday Blitz"]
[Site "Chess.com"]
[Date "2021.03.30"]
[Round "3"]
[White "sokidze"]
[Black "Savagelittlemole"]
[Result "1-0"]
[WhiteElo "2795"]
[BlackElo "2530"]
[TimeControl "180+1"]
[EndTime "10:29:18 PDT"]
[Termination "sokidze won by checkmate"]

1. d4 {[%clk 0:03:00.9]} 1... Nf6 {[%clk 0:02:59.8]} 2. g3 {[%clk 0:03:01]} 2...
c5 {[%clk 0:02:57.6]} 3. d5 {[%clk 0:03:01]} 3... e6 {[%clk 0:02:57]} 4. Nc3
{[%clk 0:03:00.8]} 4... exd5 {[%clk 0:02:57.2]} 5. Nxd5 {[%clk 0:03:01.2]} 5...
Nxd5 {[%clk 0:02:56.8]} 6. Qxd5 {[%clk 0:03:02.1]} 6... Nc6 {[%clk 0:02:55.5]}
7. c3 {[%clk 0:03:01.9]} 7... Be7 {[%clk 0:02:52]} 8. Nh3 {[%clk 0:02:59.7]}
8... O-O {[%clk 0:02:49.1]} 9. Bg2 {[%clk 0:02:58.6]} 9... d6 {[%clk 0:02:42.4]}
10. Nf4 {[%clk 0:02:54.2]} 10... Ne5 {[%clk 0:02:39.3]} 11. O-O {[%clk
0:02:37.4]} 11... Rb8 {[%clk 0:02:38.6]} 12. Rd1 {[%clk 0:02:14.6]} 12... b5
{[%clk 0:02:31.4]} 13. Qb3 {[%clk 0:02:14.5]} 13... Bb7 {[%clk 0:02:20.5]} 14.
Nd5 {[%clk 0:02:08.9]} 14... Bxd5 {[%clk 0:02:16.8]} 15. Bxd5 {[%clk 0:02:09.8]}
15... Bf6 {[%clk 0:02:01.8]} 16. Qc2 {[%clk 0:02:09.1]} 16... Qe7 {[%clk
0:01:59.8]} 17. Bf4 {[%clk 0:01:59.7]} 17... b4 {[%clk 0:01:52.7]} 18. c4 {[%clk
0:01:57.4]} 18... Ng6 {[%clk 0:01:42.7]} 19. Bxd6 {[%clk 0:01:52.4]} 19... Qe8
{[%clk 0:01:18.9]} 20. Bxb8 {[%clk 0:01:39.9]} 20... Qxb8 {[%clk 0:01:18.4]} 21.
e3 {[%clk 0:01:37.8]} 21... Qe5 {[%clk 0:01:14.3]} 22. Rab1 {[%clk 0:01:35.7]}
22... Qh5 {[%clk 0:00:59.2]} 23. f4 {[%clk 0:01:01.7]} 23... Qg4 {[%clk
0:00:47.6]} 24. Qg2 {[%clk 0:00:55.5]} 24... h5 {[%clk 0:00:34.5]} 25. Bf3
{[%clk 0:00:51]} 25... Qe6 {[%clk 0:00:33.5]} 26. Bxh5 {[%clk 0:00:39.2]} 26...
Qxe3+ {[%clk 0:00:33.1]} 27. Kh1 {[%clk 0:00:37.1]} 27... Bd4 {[%clk 0:00:29.3]}
28. Bxg6 {[%clk 0:00:36.7]} 28... fxg6 {[%clk 0:00:29.1]} 29. Re1 {[%clk
0:00:37.2]} 29... Qd3 {[%clk 0:00:27.3]} 30. Qe2 {[%clk 0:00:29.4]} 30... Qf5
{[%clk 0:00:21.6]} 31. Qe6+ {[%clk 0:00:29.2]} 31... Qf7 {[%clk 0:00:21.6]} 32.
Qxf7+ {[%clk 0:00:28.8]} 32... Rxf7 {[%clk 0:00:22.5]} 33. b3 {[%clk 0:00:29.4]}
33... Kh7 {[%clk 0:00:20.9]} 34. Re2 {[%clk 0:00:19.9]} 34... Bc3 {[%clk
0:00:17.7]} 35. Rd1 {[%clk 0:00:19.7]} 35... Kh6 {[%clk 0:00:14.7]} 36. Rd5
{[%clk 0:00:19.4]} 36... Bd4 {[%clk 0:00:14.7]} 37. Kg2 {[%clk 0:00:19.7]} 37...
a5 {[%clk 0:00:14]} 38. Re8 {[%clk 0:00:19.6]} 38... Kh7 {[%clk 0:00:11.1]} 39.
Ra8 {[%clk 0:00:16.5]} 39... Re7 {[%clk 0:00:10.4]} 40. Rxa5 {[%clk 0:00:14.9]}
40... Re2+ {[%clk 0:00:10.1]} 41. Kh3 {[%clk 0:00:14.5]} 41... Bg1 {[%clk
0:00:08.7]} 42. Kg4 {[%clk 0:00:14]} 42... Rxh2 {[%clk 0:00:08.6]} 43. Ra7
{[%clk 0:00:12.6]} 43... Rg2 {[%clk 0:00:08]} 44. Rdd7 {[%clk 0:00:10.5]} 44...
Bd4 {[%clk 0:00:07.9]} 45. a3 {[%clk 0:00:07.4]} 45... bxa3 {[%clk 0:00:08.1]}
46. Rxa3 {[%clk 0:00:08.3]} 46... Bf2 {[%clk 0:00:07.1]} 47. Kf3 {[%clk
0:00:07]} 47... Rh2 {[%clk 0:00:07.2]} 48. Raa7 {[%clk 0:00:06.8]} 48... Bd4
{[%clk 0:00:07.2]} 49. b4 {[%clk 0:00:07.3]} 49... Rd2 {[%clk 0:00:05.4]} 50.
bxc5 {[%clk 0:00:07.5]} 50... Bxc5 {[%clk 0:00:05]} 51. Rxd2 {[%clk 0:00:07.4]}
51... Bxa7 {[%clk 0:00:04.8]} 52. Rd5 {[%clk 0:00:08.3]} 52... Bb6 {[%clk
0:00:05.1]} 53. c5 {[%clk 0:00:08.9]} 53... Bc7 {[%clk 0:00:05.7]} 54. c6 {[%clk
0:00:09.5]} 54... Kg8 {[%clk 0:00:06.3]} 55. Rd7 {[%clk 0:00:10.4]} 55... Bb6
{[%clk 0:00:06.6]} 56. c7 {[%clk 0:00:10.9]} 56... Bxc7 {[%clk 0:00:07.1]} 57.
Rxc7 {[%clk 0:00:11.8]} 57... Kh7 {[%clk 0:00:07.2]} 58. Kg4 {[%clk 0:00:12.4]}
58... Kh6 {[%clk 0:00:08.1]} 59. Rc6 {[%clk 0:00:12.4]} 59... Kh7 {[%clk
0:00:08.4]} 60. Kg5 {[%clk 0:00:12.9]} 60... Kh8 {[%clk 0:00:09]} 61. Kxg6
{[%clk 0:00:12.8]} 61... Kg8 {[%clk 0:00:09.9]} 62. Rc8# {[%clk 0:00:13.7]} 1-0

[Event "*** Titled Tuesday Blitz"]
[Site "Chess.com"]
[Date "2021.03.30"]
[Round "3"]
[White "GOGIEFF"]
[Black "vinniethepooh"]
[Result "0-1"]
[WhiteElo "2886"]
[BlackElo "2662"]
[TimeControl "180+1"]
[EndTime "10:29:20 PDT"]
[Termination "vinniethepooh won by resignation"]

1. d4 {[%clk 0:03:00.9]} 1... Nf6 {[%clk 0:02:58.5]} 2. c4 {[%clk 0:03:01]} 2...
e6 {[%clk 0:02:59]} 3. Nc3 {[%clk 0:03:01.1]} 3... Bb4 {[%clk 0:02:59.4]} 4. e3
{[%clk 0:03:00.3]} 4... O-O {[%clk 0:02:59]} 5. Bd3 {[%clk 0:03:00.3]} 5... d5
{[%clk 0:02:59.1]} 6. Nf3 {[%clk 0:03:00.5]} 6... dxc4 {[%clk 0:02:59.5]} 7.
Bxc4 {[%clk 0:03:00]} 7... c5 {[%clk 0:03:00.2]} 8. O-O {[%clk 0:02:59.7]} 8...
Nc6 {[%clk 0:03:00.8]} 9. a3 {[%clk 0:02:59.1]} 9... Ba5 {[%clk 0:02:59.3]} 10.
Qd3 {[%clk 0:02:49.4]} 10... a6 {[%clk 0:02:59.6]} 11. Ne4 {[%clk 0:02:49.4]}
11... b5 {[%clk 0:02:54.7]} 12. Nxf6+ {[%clk 0:02:49]} 12... Qxf6 {[%clk
0:02:52.7]} 13. Qe4 {[%clk 0:02:49.5]} 13... Bb7 {[%clk 0:01:49.1]} 14. Bd3
{[%clk 0:02:48.7]} 14... Qg6 {[%clk 0:01:45.4]} 15. dxc5 {[%clk 0:02:31.8]}
15... f5 {[%clk 0:01:43.9]} 16. Qf4 {[%clk 0:02:13.9]} 16... e5 {[%clk 0:01:39]}
17. Qg3 {[%clk 0:02:00.3]} 17... e4 {[%clk 0:01:39.2]} 18. Be2 {[%clk
0:01:56.9]} 18... Qxg3 {[%clk 0:01:27.5]} 19. hxg3 {[%clk 0:01:55.8]} 19... exf3
{[%clk 0:01:28.2]} 20. Bxf3 {[%clk 0:01:56.7]} 20... Bc7 {[%clk 0:01:27.9]} 21.
Bd2 {[%clk 0:01:44.9]} 21... Nd8 {[%clk 0:01:25.6]} 22. c6 {[%clk 0:01:28.5]}
22... Bxc6 {[%clk 0:01:14.9]} 23. Rfc1 {[%clk 0:01:23.4]} 23... Bxf3 {[%clk
0:01:04.2]} 24. Rxc7 {[%clk 0:01:23.2]} 24... Bd5 {[%clk 0:01:01.9]} 25. Bc3
{[%clk 0:01:23.1]} 25... Rf7 {[%clk 0:01:00.5]} 26. Rc5 {[%clk 0:01:23.1]} 26...
Bb7 {[%clk 0:00:55.5]} 27. Rd1 {[%clk 0:01:20]} 27... Ne6 {[%clk 0:00:55.4]} 28.
Re5 {[%clk 0:01:20.2]} 28... Nf8 {[%clk 0:00:55.8]} 29. Rd6 {[%clk 0:01:12.3]}
29... Rc8 {[%clk 0:00:56]} 30. Kh2 {[%clk 0:01:02.5]} 30... Ng6 {[%clk
0:00:26.6]} 31. Ree6 {[%clk 0:01:01.9]} 31... Rcf8 {[%clk 0:00:25]} 32. Rb6
{[%clk 0:00:58.3]} 32... Rd8 {[%clk 0:00:24]} 33. f3 {[%clk 0:00:52.4]} 33...
Bd5 {[%clk 0:00:24.3]} 34. Red6 {[%clk 0:00:52]} 34... Rfd7 {[%clk 0:00:22.7]}
35. Rxd7 {[%clk 0:00:48.6]} 35... Rxd7 {[%clk 0:00:23.6]} 36. Rxa6 {[%clk
0:00:49.2]} 36... Kf7 {[%clk 0:00:22.4]} 37. Ra5 {[%clk 0:00:41.9]} 37... Bc4
{[%clk 0:00:22.4]} 38. a4 {[%clk 0:00:37.5]} 38... Rb7 {[%clk 0:00:22.3]} 39.
axb5 {[%clk 0:00:37.3]} 39... Bxb5 {[%clk 0:00:23.2]} 40. Bd4 {[%clk 0:00:31.7]}
40... Ne7 {[%clk 0:00:23.4]} 41. Kh3 {[%clk 0:00:31.1]} 41... Nc6 {[%clk
0:00:23.8]} 42. Ra3 {[%clk 0:00:27.5]} 42... Nxd4 {[%clk 0:00:24.1]} 43. exd4
{[%clk 0:00:28.1]} 43... Ke6 {[%clk 0:00:24.4]} 44. Re3+ {[%clk 0:00:27.3]}
44... Kd5 {[%clk 0:00:25]} 45. Re5+ {[%clk 0:00:27.4]} 45... Kxd4 {[%clk
0:00:25.6]} 46. f4 {[%clk 0:00:25.3]} 46... Rb6 {[%clk 0:00:25.2]} 47. Kh4
{[%clk 0:00:20.1]} 47... Bd3 {[%clk 0:00:23.2]} 48. Re7 {[%clk 0:00:18.3]} 48...
Rxb2 {[%clk 0:00:20.8]} 49. Rxg7 {[%clk 0:00:17.3]} 49... Rxg2 {[%clk
0:00:21.3]} 50. Re7 {[%clk 0:00:15.6]} 50... Be4 {[%clk 0:00:20.9]} 51. Ra7
{[%clk 0:00:13.3]} 51... Ke3 {[%clk 0:00:21.1]} 52. Ra3+ {[%clk 0:00:13.7]}
52... Bd3 {[%clk 0:00:19.4]} 53. Rb3 {[%clk 0:00:12.4]} 53... h6 {[%clk
0:00:19.4]} 54. Kh3 {[%clk 0:00:10.9]} 54... Rg1 {[%clk 0:00:19.6]} 55. Kh2
{[%clk 0:00:10.7]} 55... Rc1 {[%clk 0:00:19.4]} 56. Ra3 {[%clk 0:00:09.8]} 56...
Ke4 {[%clk 0:00:19.3]} 57. Kh3 {[%clk 0:00:09.1]} 57... Bf1+ {[%clk 0:00:19.2]}
58. Kh4 {[%clk 0:00:08.9]} 58... Be2 {[%clk 0:00:19.8]} 59. Kh3 {[%clk
0:00:07.2]} 59... Bg4+ {[%clk 0:00:18.6]} 60. Kg2 {[%clk 0:00:07.1]} 60... Rc2+
{[%clk 0:00:19]} 61. Kg1 {[%clk 0:00:07.7]} 61... Re2 {[%clk 0:00:18.5]} 0-1

[Event "*** Titled Tuesday Blitz"]
[Site "Chess.com"]
[Date "2021.03.30"]
[Round "3"]
[White "Smirnov_Pavel"]
[Black "Iskusnyh"]
[Result "1-0"]
[WhiteElo "2889"]
[BlackElo "2637"]
[TimeControl "180+1"]
[EndTime "10:29:22 PDT"]
[Termination "Smirnov_Pavel won on time"]

1. d4 {[%clk 0:03:00.9]} 1... d5 {[%clk 0:02:57.5]} 2. c4 {[%clk 0:03:00.5]}
2... c6 {[%clk 0:02:56.9]} 3. Nf3 {[%clk 0:02:59.9]} 3... Nf6 {[%clk 0:02:55.5]}
4. Nc3 {[%clk 0:03:00.4]} 4... a6 {[%clk 0:02:54]} 5. e3 {[%clk 0:03:00.3]} 5...
e6 {[%clk 0:02:53.4]} 6. Bd3 {[%clk 0:02:59.1]} 6... dxc4 {[%clk 0:02:50.6]} 7.
Bxc4 {[%clk 0:02:59.1]} 7... b5 {[%clk 0:02:50.6]} 8. Bb3 {[%clk 0:02:58.9]}
8... c5 {[%clk 0:02:48.4]} 9. O-O {[%clk 0:02:50.2]} 9... Bb7 {[%clk 0:02:29.8]}
10. e4 {[%clk 0:02:49.8]} 10... cxd4 {[%clk 0:02:29.3]} 11. Nxd4 {[%clk
0:02:49.6]} 11... Nc6 {[%clk 0:02:29]} 12. Nxc6 {[%clk 0:02:49.4]} 12... Qxd1
{[%clk 0:02:28.4]} 13. Rxd1 {[%clk 0:02:50]} 13... Bxc6 {[%clk 0:02:28.5]} 14.
f3 {[%clk 0:02:50.3]} 14... Be7 {[%clk 0:01:57.2]} 15. Bf4 {[%clk 0:02:18.4]}
15... O-O {[%clk 0:01:53.1]} 16. Bd6 {[%clk 0:02:18.3]} 16... Bxd6 {[%clk
0:01:49.5]} 17. Rxd6 {[%clk 0:02:19.2]} 17... Rfc8 {[%clk 0:01:49.3]} 18. Rad1
{[%clk 0:02:13.9]} 18... Kf8 {[%clk 0:01:44.9]} 19. Kf2 {[%clk 0:01:56]} 19...
Ke7 {[%clk 0:01:38.7]} 20. Ke3 {[%clk 0:01:39.4]} 20... Ra7 {[%clk 0:01:35.1]}
21. R6d2 {[%clk 0:01:28.1]} 21... Nd7 {[%clk 0:01:28.2]} 22. Ne2 {[%clk
0:01:23.4]} 22... Nc5 {[%clk 0:01:24.6]} 23. Bc2 {[%clk 0:01:18.3]} 23... e5
{[%clk 0:01:16.5]} 24. b4 {[%clk 0:01:13]} 24... Ne6 {[%clk 0:01:14.5]} 25. Bb3
{[%clk 0:01:12.7]} 25... a5 {[%clk 0:01:07.9]} 26. bxa5 {[%clk 0:01:02.1]} 26...
Rxa5 {[%clk 0:01:03.2]} 27. Rc1 {[%clk 0:00:54.5]} 27... Bd7 {[%clk 0:00:53.6]}
28. Rxc8 {[%clk 0:00:53.3]} 28... Bxc8 {[%clk 0:00:52.3]} 29. Rd5 {[%clk
0:00:52.8]} 29... f6 {[%clk 0:00:43.7]} 30. Nc3 {[%clk 0:00:51.5]} 30... Nc7
{[%clk 0:00:37.6]} 31. Rd2 {[%clk 0:00:44.5]} 31... Be6 {[%clk 0:00:35]} 32.
Bxe6 {[%clk 0:00:23.9]} 32... Kxe6 {[%clk 0:00:34.5]} 33. Rb2 {[%clk 0:00:19.9]}
33... Kd6 {[%clk 0:00:23.7]} 34. Rd2+ {[%clk 0:00:18]} 34... Kc6 {[%clk
0:00:21.5]} 35. Rc2 {[%clk 0:00:17.3]} 35... Kd6 {[%clk 0:00:21.6]} 36. Rb2
{[%clk 0:00:17.4]} 36... Kc5 {[%clk 0:00:18.8]} 37. Nb1 {[%clk 0:00:16.9]} 37...
Ra4 {[%clk 0:00:17.7]} 38. Nd2 {[%clk 0:00:15]} 38... Ne6 {[%clk 0:00:16.1]} 39.
Nb3+ {[%clk 0:00:14.9]} 39... Kd6 {[%clk 0:00:14.9]} 40. Rd2+ {[%clk 0:00:15.8]}
40... Kc6 {[%clk 0:00:14.1]} 41. g3 {[%clk 0:00:15.3]} 41... Rc4 {[%clk
0:00:12.2]} 42. Na5+ {[%clk 0:00:14.8]} 42... Kc5 {[%clk 0:00:12.4]} 43. Nxc4
{[%clk 0:00:15]} 43... bxc4 {[%clk 0:00:12.8]} 44. Rd5+ {[%clk 0:00:14.6]} 44...
Kb4 {[%clk 0:00:12.1]} 45. Rd7 {[%clk 0:00:14.5]} 45... c3 {[%clk 0:00:11.2]}
46. Rb7+ {[%clk 0:00:13.5]} 46... Kc4 {[%clk 0:00:10.8]} 47. Rb8 {[%clk
0:00:12.5]} 47... Nd4 {[%clk 0:00:08.9]} 48. Rc8+ {[%clk 0:00:12.1]} 48... Kb4
{[%clk 0:00:08.9]} 49. Kd3 {[%clk 0:00:12.4]} 49... c2 {[%clk 0:00:07.9]} 50.
Rxc2 {[%clk 0:00:11.5]} 50... Nxc2 {[%clk 0:00:06.1]} 51. Kxc2 {[%clk
0:00:12.4]} 51... Ka3 {[%clk 0:00:06.4]} 52. Kb1 {[%clk 0:00:12.4]} 52... g5
{[%clk 0:00:06.6]} 53. g4 {[%clk 0:00:12.2]} 53... Kb4 {[%clk 0:00:05.8]} 54.
Kb2 {[%clk 0:00:12.3]} 54... Kc4 {[%clk 0:00:06.3]} 55. a3 {[%clk 0:00:12.5]}
55... Kd4 {[%clk 0:00:05.3]} 56. a4 {[%clk 0:00:12.4]} 56... Kc5 {[%clk
0:00:03.8]} 57. Kb3 {[%clk 0:00:12.4]} 1-0